Cogmind - Beta 10.2 @@@ ROGUE MODE // 2021.06.06 @ 09:08:17 Player: Finestep Result: Destroyed by 8R-AWN with 8R-AWN's Boregun Performance ------------- Evolutions (0) 0 Regions Visited (3) 600 Robots Destroyed (39) 195 Value Destroyed (714) 714 Prototype IDs (23) 460 Alien Tech Used (0) 0 Bonus (284) 284 TOTAL SCORE: 2253 Bonus ------- Aligned with FarCom 300 Friendly Fire -16 Cogmind --------- Core Integrity 0/250 Matter 300/300 Energy 99/100 System Corruption 0% Temperature Cool (0) Movement Core (50) Location -10/Exiles Parts ------- > --- POWER (1) -------- (None) > --- PROPULSION (2) --- (None) > --- UTILITY (2) ------ (None) > --- WEAPON (2) ------- (None) > --- INVENTORY (4) ---- Large Storage Unit Light Cannon Light Cannon Peak State ------------ > --- POWER ------------ Ion Engine > --- PROPULSION ------- Light Treads Light Treads > --- UTILITY ---------- Large Storage Unit High-capacity Storage Unit > --- WEAPON ----------- Light Cannon Light Cannon > --- INVENTORY -------- Ion Engine Ion Engine Light Nuclear Core Light Treads Light Treads Aluminum Leg Wheel Compact Wheel Medium Storage Unit High-capacity Battery Medium Matter Pod Medium Matter Pod Targeting Computer Hacking Suite Medium Laser Medium Laser Light Assault Rifle Light Cannon [Rating: 9] Favorites ----------- Power Ion Engine Engine Ion Engine Power Core Light Nuclear Core Propulsion Light Treads Treads Light Treads Leg Aluminum Leg Utility High-capacity Storage Unit Storage High-capacity Storage Unit Protection Light Armor Plating Weapon Light Cannon Energy Gun Medium Laser Ballistic Gun Light Assault Rifle Ballistic Cannon Light Cannon Special Weapon Mining Laser Build | -11 -10 -10 -10 ------- Run | Scr Mat Min Exi Slots Evolved . | . . . . Power . | . . . . Propulsion . | . . . . Utility . | . . . . Weapon . | . . . . Parts Attached 38 | 6 23 . 9 Power 6 | 1 4 . 1 Engine 5 | 1 4 . . Core 1 | . . . 1 Reactor . | . . . . Propulsion 9 | 2 3 . 4 Treads 5 | 2 1 . 2 Leg 4 | . 2 . 2 Wheel . | . . . . Hover . | . . . . Flight . | . . . . Utility 6 | 1 3 . 2 Device . | . . . . Storage 4 | 1 3 . . Processor . | . . . . Hackware . | . . . . Protection 2 | . . . 2 Artifact . | . . . . Weapon 17 | 2 13 . 2 Energy Gun 5 | 1 4 . . Energy Cannon . | . . . . Ballistic Gun 6 | 1 3 . 2 Ballistic Cannon 5 | . 5 . . Launcher . | . . . . Special Weapon 1 | . 1 . . Impact Weapon . | . . . . Slashing Weapon . | . . . . Piercing Weapon . | . . . . Special Melee Weapon . | . . . . Unidentified Prototypes . | . . . . Parts Lost 13 | . 2 . 11 Power 2 | . . . 2 Propulsion 4 | . . . 4 Utility 2 | . . . 2 Weapon 5 | . 2 . 3 Highest Loss Streak 11 | . 1 . 11 Average Slot Usage (%) 99 | . 99 100 97 Engine 13 | . 14 14 13 Treads 13 | . 20 . 5 Leg 13 | . 7 28 21 Storage 26 | . 27 28 24 Energy Gun 3 | . 6 . . Ballistic Gun 5 | . 9 . . Ballistic Cannon 18 | . 11 28 26 Naked Turns 9 | . . . 9 Heaviest Build 59 | 10 59 59 59 Greatest Support 40 | 40 40 20 40 Greatest Overweight (x) 3 | . 2 2 3 Average Overweight (x) 1 | . 1 2 1 Largest Inventory Capacity 18 | 6 18 18 18 Average Capacity 16 | 5 17 18 16 Most Carried 18 | 6 18 18 18 Average Carried 15 | 5 15 17 15 Final Capacity 18 | 6 18 18 4 Final Carried 18 | 6 18 18 3 Class Distribution -------------------- 100% | Mutant Dominant Class ---------------- Mutant | -10/Materials Mutant | -10/Mines Mutant | -10/Exiles Resources | -11 -10 -10 -10 ----------- Run | Scr Mat Min Exi Matter Collected 1616 | 276 1079 76 185 Remotely . | . . . . Salvage Created 1288 | 135 1061 80 12 Parts 73 | 8 59 6 . Haulers Intercepted 2 | . 2 . . Recyclers Shooed 4 | . 4 . . Parts Field Recycled . | . . . . Retrieved Matter . | . . . . Parts Self-Destructed . | . . . . Prevented . | . . . . Kills | -11 -10 -10 -10 ------- Run | Scr Mat Min Exi Combat Hostiles Destroyed 20 | . 16 2 2 Guns 6 | . 6 . . Cannons 14 | . 10 2 2 Classes Destroyed 9 | 2 6 . 1 Worker 3 | . 3 . . Tunneler 3 | 3 . . . Hauler 2 | . 2 . . Recycler 6 | 1 4 1 . Operator 5 | . 5 . . Watcher 2 | . 2 . . Swarmer 5 | . 3 2 . Grunt 13 | . 13 . . Assembled 2 | . . . 2 Best Kill Streak 5 | 2 5 2 2 Combat Bots Only 3 | . 3 2 2 Max Kills in Single Turn 1 | 1 1 1 1 Gunslinging . | . . . . Exploded . | . . . . Melee . | . . . . Uniques/NPCs Destroyed . | . . . . Combat | -11 -10 -10 -10 -------- Run | Scr Mat Min Exi Damage Taken 1913 | . 585 55 1273 Core 260 | . 42 6 212 Absorbed by Shields . | . . . . Core Remaining (%) 100 | 100 . . . Volleys Fired 137 | 16 97 4 20 Largest 2 | 2 2 2 2 Hottest 100 | 70 100 70 70 Shots Fired 265 | 32 188 8 37 Gun 143 | 32 97 . 14 Cannon 118 | . 87 8 23 Launcher . | . . . . Special 4 | . 4 . . Kinetic 203 | 16 142 8 37 Thermal 62 | 16 46 . . Explosive . | . . . . Electromagnetic . | . . . . Robot Hit Streak 11 | 4 11 4 9 Robot Miss Streak 4 | 1 4 3 3 Penetration Max . | . . . . Secondary Targets . | . . . . Shots Hit Robots 163 | 20 112 4 27 Core Hits 69 | 7 51 3 8 Critical Hits . | . . . . Critical Kills . | . . . . Critical Parts Destroyed . | . . . . Melee Attacks . | . . . . Impact . | . . . . Slashing . | . . . . Piercing . | . . . . Sneak Attacks . | . . . . Combat Hostiles . | . . . . Follow-up Attacks . | . . . . Damage Inflicted 1980 | 201 1348 66 365 Guns 931 | 201 630 . 100 Cannons 1049 | . 718 66 265 Explosions . | . . . . Melee . | . . . . Ramming . | . . . . Kinetic 1528 | 75 1022 66 365 Thermal 452 | 126 326 . . Explosive . | . . . . Electromagnetic . | . . . . Impact . | . . . . Slashing . | . . . . Piercing . | . . . . Highest Corruption . | . . . . Average Corruption . | . . . . Corruption Purged . | . . . . Overload Shots . | . . . . Overflow Damage 16 | . 16 . . Projectiles 16 | . 16 . . Explosions . | . . . . Melee . | . . . . Knockbacks 17 | . 14 . 3 Impact . | . . . . Kinetic 15 | . 12 . 3 Secondary 2 | . 2 . . Self-Inflicted Damage . | . . . . Shots . | . . . . Rammed . | . . . . Targets Rammed . | . . . . Kicked . | . . . . Crushed . | . . . . Highest Temperature 185 | 120 114 27 185 Average Temperature 39 | 47 30 12 95 Received Heat Transfer 270 | . 270 . . Siege Activations . | . . . . Robots Corrupted . | . . . . Combat Hostiles . | . . . . Parts Fried . | . . . . Impact Corruptions . | . . . . Robots Melted . | . . . . Combat Hostiles . | . . . . Parts Melted 3 | . 3 . . Heat Transferred 1273 | 370 903 . . Parts Sabotaged . | . . . . Parts Stolen . | . . . . Parts Stripped . | . . . . Power Chain Reactions . | . . . . Missiles Intercepted . | . . . . Alert | -11 -10 -10 -10 ------- Run | Scr Mat Min Exi Peak Influence 325 | 20 325 128 . Initial 43 | . 13 43 . Average 133 | 11 151 125 . Maximum Alert Level 1 | . 1 . . Low Security (%) 72 | 100 64 100 . Level 1 27 | . 35 . . Level 2 . | . . . . Level 3 . | . . . . Level 4 . | . . . . Level 5 . | . . . . High Security . | . . . . Max Security . | . . . . Squads Dispatched 6 | . 6 . . Investigation 1 | . 1 . . Extermination . | . . . . Reinforcement 5 | . 5 . . Assault . | . . . . Garrison . | . . . . Intercept . | . . . . Construction Impeded . | . . . . Haulers Reinforced . | . . . . Stealth | -11 -10 -10 -10 --------- Run | Scr Mat Min Exi Distress Signals 2 | . 2 . . Communications Jammed . | . . . . Distress Signals . | . . . . Times Spotted 52 | . 41 3 8 Peak Tracking Total 9 | . 4 3 9 Tactical Retreats 2 | . 1 1 . Traps | -11 -10 -10 -10 ------- Run | Scr Mat Min Exi Traps Triggered 4 | . 4 . . Indirectly . | . . . . Trap Hack Attempts . | . . . . Triggered . | . . . . Disarmed . | . . . . Reprogrammed . | . . . . Reused . | . . . . Traps Extracted . | . . . . Installed . | . . . . Triggered . | . . . . Machines | -11 -10 -10 -10 ---------- Run | Scr Mat Min Exi Machines Disabled 6 | . 2 . 4 Max in Single Turn 1 | . 1 . 1 Machines Sabotaged . | . . . . Garrisons Compromised . | . . . . Overloaded Fab Kills . | . . . . Fab Network Shutdowns . | . . . . Hacking | -11 -10 -10 -10 --------- Run | Scr Mat Min Exi Machines Accessed 7 | . 5 . 2 Terminals 4 | . 4 . . Fabricators . | . . . . Repair Stations 1 | . 1 . . Recycling Units . | . . . . Scanalyzers . | . . . . Garrison Access . | . . . . Total Hacks 21 | . 16 . 5 Successful 14 | . 9 . 5 Failed 7 | . 7 . . Catastrophic . | . . . . Database Lockouts . | . . . . Manual 6 | . 5 . 1 Terminals 10 | . 10 . . Fabricators . | . . . . Repair Stations 6 | . 6 . . Recycling Units . | . . . . Scanalyzers . | . . . . Garrison Access . | . . . . Terminal Hacks 7 | . 2 . 5 Record 4 | . . . 4 Locate Traps 1 | . 1 . . Hauler Manifests 1 | . 1 . . EX-Prototype ID Bank 1 | . . . 1 Fabricator Hacks . | . . . . Repair Station Hacks 6 | . 6 . . Scan Component 3 | . 3 . . Repair 3 | . 3 . . Recycling Unit Hacks . | . . . . Scanalyzer . | . . . . Garrison Access Hacks . | . . . . Unauthorized Hacks 1 | . 1 . . Terminals 1 | . 1 . . Assimilate 1 | . 1 . . Fabricators . | . . . . Repair Stations . | . . . . Recycling Units . | . . . . Scanalyzers . | . . . . Garrison Access . | . . . . Data Cores Recovered . | . . . . Used . | . . . . Hacking Detections 4 | . 4 . . Full Trace Events . | . . . . Feedback Events . | . . . . Feedback Blocked . | . . . . Robot Schematics Acquired . | . . . . Robots Built . | . . . . Matter . | . . . . Time . | . . . . Total Robot Build Rating . | . . . . Part Schematics Acquired . | . . . . Parts Built . | . . . . Matter . | . . . . Time . | . . . . Total Part Build Rating . | . . . . Parts Repaired 3 | . 3 . . Time 78 | . 78 . . Parts Recycled . | . . . . Recycled Matter . | . . . . Retrieved Matter . | . . . . Retrieved Components . | . . . . Parts Scanalyzed . | . . . . Part Schematics Acquired . | . . . . Parts Damaged . | . . . . Bothacking | -11 -10 -10 -10 ------------ Run | Scr Mat Min Exi Used RIF Installer . | . . . . Robots Hacked . | . . . . Non-combat . | . . . . Combat . | . . . . Robot Hacks Applied . | . . . . Relay Couplers Released . | . . . . Robots Rewired . | . . . . Allies Hacked . | . . . . Hacks Repelled . | . . . . Allies | -11 -10 -10 -10 -------- Run | Scr Mat Min Exi Total Allies 3 | . . 3 . Largest Group 3 | . . 3 3 Highest-Rated Group 40 | . . 40 40 Highest-Rated Ally 16 | . . 16 16 Total Orders 1 | . . . 1 STAY 1 | . . . 1 Ally Attacks 37 | . . . 37 Total Damage 401 | . . . 401 Kills 4 | . . . 4 Allies Corrupted . | . . . . Allies Melted . | . . . . Intel | -11 -10 -10 -10 ------- Run | Scr Mat Min Exi Robot Analysis Total . | . . . . Derelict Logs Recovered . | . . . . Drone Launches . | . . . . Drone Recoveries . | . . . . Exploration | -11 -10 -10 -10 ------------- Run | Scr Mat Min Exi Turns Passed 3709 | 262 2006 381 1060 Spaces Moved 1756 | 127 870 203 556 Core 20 | 3 . . 17 Treads 876 | 124 652 . 100 Legs 860 | . 218 203 439 Wheels . | . . . . Hover . | . . . . Flight . | . . . . Fastest Speed 50 | 50 160 180 50 Average Speed 177 | 157 179 180 176 Slowest Speed 210 | 160 200 180 210 Overloaded Moves . | . . . . Propulsion Burnouts . | . . . . Robots Hopped . | . . . . Cave-ins Triggered . | . . . . Exploration Rate (%) 52 | 7 98 43 61 Regions Visited 3 Branch Regions 2 Pre-discovered Areas 1 | . . . 1 Known Exits Taken . | . . . . Unknown Exits Taken 3 | 1 1 1 . Scrap Searched 1 | . . 1 . Spaces Dug 1 | . 1 . . Terrain Destroyed 4 | . 4 . . Melee . | . . . . Projectile 4 | . 4 . . AOE . | . . . . Terrain Rammed . | . . . . Walls Destroyed . | . . . . Machines Disabled . | . . . . Actions | -11 -10 -10 -10 --------- Run | Scr Mat Min Exi Total 2105 | 158 1125 212 610 Wait 100 | . 98 2 . Move 1753 | 126 869 202 556 Hop . | . . . . Pick Up 41 | 8 24 2 7 Fast Attach 17 | 6 11 . . Attach 8 | . 2 . 6 Detach . | . . . . Swap 13 | . 10 . 3 Drop 36 | 2 14 2 18 Fire 137 | 16 97 4 20 Melee . | . . . . Ram . | . . . . Kick . | . . . . Crush . | . . . . Escape Stasis . | . . . . Rewire . | . . . . Trap . | . . . . Miscellaneous . | . . . . Route ------- -11/Scrapyard -10/Materials (discovered 5 exits: [*Mat x3] / [*Min x2]) -10/Mines (discovered 2 exits: [*Mat] / *Exi) -10/Exiles History --------- Turn | Location | Event 6 | -11/Scrapyard | Discovered new exit (range 16) 263 | -11/Scrapyard | Entered Materials 328 | -10/Materials | Build established: Mutant 833 | -10/Materials | Discovered new exit (range 11) 1060 | -10/Materials | Discovered new exit (range 9) 1173 | -10/Materials | Discovered new exit (range 12) 1492 | -10/Materials | Discovered new exit (range 12) 2051 | -10/Materials | Discovered new exit (range 9) 2117 | -10/Materials | Repaired Lgt. Cannon 2155 | -10/Materials | Repaired Lgt. Treads 2182 | -10/Materials | Repaired Lgt. Cannon 2269 | -10/Materials | Entered Mines 2340 | -10/Mines | Discovered new exit (range 10) 2544 | -10/Mines | Assisted by bots powering up and referring to "LRC-V3" 2601 | -10/Mines | Deemed a non-threat by the Exiles lab entrance 2601 | -10/Mines | Discovered new exit (range 5) 2650 | -10/Mines | Entered Exiles 2650 | -10/Exiles | Accompanied by 3 allies 2778 | -10/Exiles | Met 8R-AWN 2803 | -10/Exiles | Met EX-HEX 2856 | -10/Exiles | Met EX-BIN 2919 | -10/Exiles | Met EX-DEC 2971 | -10/Exiles | Learned location of Zion (-7) 3144 | -10/Exiles | Aligned with FarCom system 3145 | -10/Exiles | Given EX-Vault access code 3234 | -10/Exiles | Opened EX-Vault 3271 | -10/Exiles | Warned to stay clear of 0b10 Research branches 3639 | -10/Exiles | Attacked by the Exiles 3677 | -10/Exiles | Core integrity fell below 50% 3704 | -10/Exiles | Core integrity fell below 20% 3710 | -10/Exiles | Destroyed by 8R-AWN with 8R-AWN's Boregun Last Messages --------------- 03690_ as-33266 destroyed. 03692_ Penetrated by HV Slug. 03694_ Extracted 2 matter. 03694_ Machine disabled. 03695_ Penetrated by HV Slug. 03695_ Lgt. Assault Rifle destroyed. 03695_ HV Slug penetrates Wall. 03696_ Extracted 1 matter. 03699_ Penetrated by HV Slug. 03700_ Extracted 1 matter. 03701_ Dropped Lgt. Assault Rifle. 03701_ Dropped Hcp. Storage Unit. 03703_ Penetrated by HV Slug. 03703_ HV Slug penetrates Wall. 03703_ Penetrated by HV Slug. 03703_ HV Slug penetrates Wall. 03710_ Penetrated by HV Slug. 03710_ HV Slug penetrates Machine. 03710_ Machine disabled. 03710_ Penetrated by HV Slug. Map ----- +----------------------------------------------------+ | ?????????????????????????????????????????????????? | | ?????????????????????????????????????????????????? | | ?????????????????????????????????????????????????? | | ?????????????????????????????????????????????????? | | ?????????????????????????????????????????????????? | | ?????????????????????????????????????????????????? | | ?????????????????????????????????????????????????? | | ?????????????????????????????????????????????????? | | ?????????????????????????????????????????????????? | | ?????????????????????????????????????????????????? | | ?????????????????????????????????????????????????? | | ?????????????????????????????????????????????????? | | ?????????????????????????????????????????????????? | | #####???????????????????????????????????? ?????? | | """"##??????????????????????????????????? ????? | | """"##?????????????????????????????????# #????? | | " #???????????????????????????????## ##???? | | """#???????????????????????????????# #???? | | "#???????????#####???????????????# #???? | | "##?????????##" #??????????????## ????? | | "###???????#" #?????????????## #?????? | | = ""#??????##" ##????????????# #?????? | | =!%= #????### ###????????### #??????? | | =% [ !###??# ########## #??????? | | ! %[!"#### #"" ## #???????? | | ! "## @ ##??????? | | a g ## #??????? | | #### ##?????? | | ""#?#"""""#### ###???? | | #"""##?#######??#### ###?? | | % ######??????????????##### ##? | | ##???????????????????????### #? | | % ##??????????????????????????### #? | | % % " #?????????????????????????????### #? | | " "##??????????????????????????????#" ## | | #" % ##???????????????????????????????#### # | | #########???????????????????????????????????# | | ????????????????????????????????????????????## * | | ?????????????????????????????????????????????### * | | ???????????????????????????????????????????????# | | ???????????????????????????????????????????????## | | ????????????????????????????????????????????????## | | ?????????????????????????????????????????????????? | | ?????????????????????????????????????????????????? | | ?????????????????????????????????????????????????? | | ?????????????????????????????????????????????????? | | ?????????????????????????????????????????????????? | | ?????????????????????????????????????????????????? | | ?????????????????????????????????????????????????? | | ?????????????????????????????????????????????????? | +----------------------------------------------------+ Best States ------------- Heat Dissipation 25 Energy Generation 14 Energy Capacity 250 Matter Stores 300 Matter Capacity 300 Sight Range 16 Terrain Scan Density 10 Armor Coverage 150 Evasion (%) 50 Recoil Reduction 2 Item Schematics ----------------- None Robot Schematics ------------------ None Fabricated ------------ Nothing Alien Tech Used ----------------- None Achievements -------------- None Challenges ------------ None Game ------ Seed ThiefFieldAutohacker Manual? 0 Play Time 00:19:34 Cumulative 548.8 hours Start 2021.06.06 @ 08:52:52 End 2021.06.06 @ 09:08:17 Sessions 1 Manual Loads 0 Difficulty Rogue Special Mode None Game No. 347 Rogue 347 Adventurer 0 Explorer 0 Win Type - Total 6 Types 4/0/1/0/1/0/0/0/0 Lore% 88 Gallery% 89 Achievement% 70 Wizard Run 0 Options --------- ASCII 0 Keyboard 0 Movement Mouse Keybinds 1 Fullscreen 2 Font 24/Smallcaps Map View 76x50 Tactical HUD 1 Map Filters NONE Filters NONE Steam 1 RUN: 19a70fa9-4a29-4bd6-bae0-cbdffabd3111